Cogmind - Beta 12 @@@ ROGUE MODE // 2023.03.14 @ 01:47:33 Player: Shin Result: Destroyed by G-50 Soldier with Heavy Laser Performance ------------- Evolutions (4) 2000 Regions Visited (13) 2600 Robots Destroyed (90) 450 Value Destroyed (2810) 2810 Prototype IDs (38) 760 Alien Tech Used (0) 0 Bonus (932) 932 TOTAL SCORE: 9552 Bonus ------- High Alert Combat Kills 28 Follower Combat Kills 321 Aligned with FarCom 300 Met Data Miner 300 Friendly Fire -17 Cogmind --------- Core Integrity 0/850 Matter 36/300 Energy 100/100 System Corruption 0% Temperature Cool (18) Movement Core (1350) Ox26 Location -6/Factory Parts ------- > --- POWER (1) -------- (None) > --- PROPULSION (5) --- (None) > --- UTILITY (6) ------ Huge Storage Unit Improved Signal Interpreter Improved Targeting Computer > --- WEAPON (3) ------- (None) > --- INVENTORY (25) --- Improved Heat Sink High-capacity Battery (250) 0b10 Decoder Chip [Scout] Improved Targeting Computer Improved Targeting Computer Improved Melee Analysis Suite Matter Filter Kinecellerator Weapon Cycler Medium Reactive Plating Medium Reflective Plating EM Disruption Field Shield Generator System Shield System Restoration Module Long-range Tractor Beam Drone Bay (2/2) Coil Gun Coil Gun Coil Gun Advanced Assault Cannon Gauss Cannon Slug Cannon Heavy Rocket Launcher Makeshift Spear Peak State ------------ > --- POWER ------------ Reinforced Ion Engine > --- PROPULSION ------- Aluminum Leg Carbon-fiber Leg Improved Carbon-fiber Leg Potential Leg Potential Leg > --- UTILITY ---------- Improved Heat Sink Huge Storage Unit Improved Signal Interpreter Improved Targeting Computer Medium Reactive Plating > --- WEAPON ----------- Heavy Laser Gauss Rifle > --- INVENTORY -------- Deuterium Engine Deuterium Engine Compact Wheel Improved Heat Sink High-capacity Battery Improved Terrain Scanner Improved Targeting Computer Improved Targeting Computer Improved Targeting Computer Hardened Medium Armor Plating Medium Reactive Plating Medium Reactive Plating Medium Reactive Plating Shield Generator Hacking Suite System Restoration Module Long-range Tractor Beam Flak Cannon Advanced Assault Cannon Advanced Assault Cannon Advanced Assault Cannon Advanced Assault Cannon Rocket Launcher Improved Datajack [Rating: 58] Favorites ----------- Power Reinforced Ion Engine Engine Reinforced Ion Engine Propulsion Aluminum Leg Leg Aluminum Leg Wheel Compact Wheel Utility Huge Storage Unit Device Improved Terrain Scanner Storage Huge Storage Unit Processor Improved Signal Interpreter Hackware Hacking Suite Protection Medium Reactive Plating Weapon Advanced Assault Cannon Energy Gun Medium Laser Energy Cannon Heavy Ion Cannon Ballistic Gun Autogun Ballistic Cannon Advanced Assault Cannon Launcher Rocket Launcher Piercing Weapon Makeshift Spear Build | -11 -10 -10 -9 -9 -9 -8 -8 -7 -7 -7 -7 -6 -6 ------- Run | Jun Mat Min Mat Min Exi Min Mat Fac Low Low Dat Pro Fac Slots Evolved 8 | . . . 2 . . . 2 2 . . . . 2 Power . | . . . . . . . . . . . . . . Propulsion 3 | . . . 1 . . . 2 . . . . . . Utility 4 | . . . 1 . . . . 2 . . . . 1 Weapon 1 | . . . . . . . . . . . . . 1 Parts Attached 91 | . 6 8 12 3 3 5 18 4 6 2 . 15 9 Power 7 | . . 2 1 . . . 1 . . 1 . 1 1 Engine 7 | . . 2 1 . . . 1 . . 1 . 1 1 Core . | . . . . . . . . . . . . . . Reactor . | . . . . . . . . . . . . . . Propulsion 24 | . 3 . 4 1 3 . 5 2 2 . . 4 . Treads . | . . . . . . . . . . . . . . Leg 22 | . 3 . 4 . 3 . 5 2 2 . . 3 . Wheel 2 | . . . . 1 . . . . . . . 1 . Hover . | . . . . . . . . . . . . . . Flight . | . . . . . . . . . . . . . . Utility 17 | . 2 . 2 . . . 2 2 2 . . 3 4 Device 4 | . . . . . . . . 1 1 . . 1 1 Storage 2 | . 1 . 1 . . . . . . . . . . Processor 5 | . 1 . 1 . . . 2 . . . . . 1 Hackware 1 | . . . . . . . . . . . . . 1 Protection 5 | . . . . . . . . 1 1 . . 2 1 Artifact . | . . . . . . . . . . . . . . Weapon 43 | . 1 6 5 2 . 5 10 . 2 1 . 7 4 Energy Gun 4 | . 1 . 2 . . . 1 . . . . . . Energy Cannon 1 | . . . . . . . 1 . . . . . . Ballistic Gun 16 | . . 4 2 1 . 4 2 . . . . 2 1 Ballistic Cannon 10 | . . . . . . . 3 . 2 . . 4 1 Launcher 9 | . . 2 1 1 . 1 3 . . . . . 1 Special Weapon . | . . . . . . . . . . . . . . Impact Weapon . | . . . . . . . . . . . . . . Slashing Weapon . | . . . . . . . . . . . . . . Piercing Weapon 3 | . . . . . . . . . . 1 . 1 1 Special Melee Weapon . | . . . . . . . . . . . . . . Unidentified Prototypes . | . . . . . . . . . . . . . . Parts Lost 29 | . 2 1 . . . 1 2 . . . . 13 10 Power 3 | . . . . . . . . . . . . 2 1 Propulsion 9 | . 1 . . . . . 1 . . . . 5 2 Utility 7 | . . . . . . . . . . . . 3 4 Weapon 10 | . 1 1 . . . 1 1 . . . . 3 3 Highest Loss Streak 11 | . 1 1 . . . 1 2 . . . . 11 8 To Critical Strikes . | . . . . . . . . . . . . . . Average Slot Usage (%) 94 | . 94 100 99 100 99 99 99 99 100 100 100 80 73 Engine 9 | . 14 14 11 11 11 11 8 7 7 7 7 3 4 Leg 29 | . 28 28 33 27 27 33 44 38 38 38 38 19 5 Wheel 1 | . . . . 5 5 . . . . . . 3 5 Device 2 | . . . . . . . . 6 7 7 7 3 4 Storage 9 | . 14 14 11 11 11 11 9 7 7 7 7 7 6 Processor 15 | . 8 14 22 22 22 22 17 15 15 15 15 15 13 Protection 4 | . . . . . . . . 7 7 7 7 10 12 Energy Gun 5 | . 21 4 5 11 11 . 4 7 6 . . . . Ballistic Gun 9 | . 7 23 15 11 11 21 6 7 1 . . 3 10 Ballistic Cannon 3 | . . . . . . . 5 . 6 8 7 8 5 Naked Turns . | . . . . . . . . . . . . . . Heaviest Build 137 | 12 27 31 95 96 95 97 102 119 123 123 118 120 137 Greatest Support 110 | 20 20 20 30 30 80 80 110 103 98 98 98 103 16 Greatest Overweight (x) 43 | . 1 1 3 5 5 1 1 1 1 1 1 39 43 Average Overweight (x) 2 | . . 1 . 4 2 1 . 1 1 1 1 4 7 Largest Inventory Capacity 25 | . 15 15 25 25 25 25 25 25 25 25 25 25 25 Average Capacity 22 | . 12 15 16 25 25 25 25 25 25 25 25 25 25 Most Carried 25 | . 15 15 15 25 25 25 25 25 25 25 25 25 25 Average Carried 20 | . 8 14 14 18 24 24 24 24 24 24 25 21 24 Final Capacity 25 | 8 15 15 25 25 25 25 25 25 25 25 25 25 25 Final Carried 25 | 6 15 15 15 25 25 25 25 25 25 25 25 21 25 Class Distribution -------------------- 64% | Mutant 28% | Scavenger-Mutant 7% | Tank Dominant Class ---------------- Mutant | -10/Materials Mutant | -10/Mines Scavenger-Mutant | -9/Materials Mutant | -9/Mines Mutant | -9/Exiles Mutant | -8/Mines Scavenger-Mutant | -8/Materials Scavenger-Mutant | -7/Factory Scavenger-Mutant | -7/Lower Caves Mutant | -7/Lower Caves Mutant | -7/Data Miner Mutant | -6/Proximity Caves Tank | -6/Factory Resources | -11 -10 -10 -9 -9 -9 -8 -8 -7 -7 -7 -7 -6 -6 ----------- Run | Jun Mat Min Mat Min Exi Min Mat Fac Low Low Dat Pro Fac Matter Collected 2623 | 200 143 559 266 30 . 238 507 . 172 50 . 339 119 Remotely . | . . . . . . . . . . . . . . Salvage Created 3165 | . 469 184 411 . . 352 596 . 259 . . 261 633 Parts 146 | . 28 14 15 . . 15 25 . 7 . . 14 28 Haulers Intercepted 2 | . 1 . 1 . . . . . . . . . . Recyclers Shooed 3 | . . . 2 . . . . . . . . . 1 Parts Field Recycled . | . . . . . . . . . . . . . . Retrieved Matter . | . . . . . . . . . . . . . . Parts Self-Destructed 32 | . . . . . . . . . 8 . . 24 . Prevented . | . . . . . . . . . . . . . . Kills | -11 -10 -10 -9 -9 -9 -8 -8 -7 -7 -7 -7 -6 -6 ------- Run | Jun Mat Min Mat Min Exi Min Mat Fac Low Low Dat Pro Fac Combat Hostiles Destroyed 71 | . 12 11 6 . . 6 11 . 6 . . 12 7 Melee 1 | . . . . . . . . . . . . 1 . Guns 36 | . 12 5 6 . . 4 3 . 2 . . 2 2 Cannons 20 | . . . . . . . 3 . 4 . . 9 4 AOE 14 | . . 6 . . . 2 5 . . . . . 1 Classes Destroyed 14 | . 3 . 3 . . 2 3 . . . . 3 . Worker 5 | . . . . . . 1 1 . . . . . 3 Builder 2 | . . . . . . . 1 . . . . . 1 Hauler 2 | . 1 . 1 . . . . . . . . . . Recycler 7 | . . . 1 . . 2 2 . . . . . 2 Mechanic 1 | . . . . . . . 1 . . . . . . Drone 2 | . . . . . . . . . . . . 2 . Watcher 2 | . . . 1 . . . 1 . . . . . . Swarmer 17 | . 3 9 . . . . . . . . . 5 . Grunt 41 | . 9 2 5 . . 5 8 . 4 . . 3 5 Brawler 3 | . . . 1 . . . 1 . 1 . . . . Duelist 1 | . . . . . . . . . . . . 1 . Sentry 4 | . . . . . . . 2 . 1 . . . 1 Hunter 1 | . . . . . . 1 . . . . . . . Programmer 2 | . . . . . . . . . . . . 1 1 Best Kill Streak 11 | . 4 3 3 . . 3 4 . 3 . . 4 11 Combat Bots Only 5 | . 4 3 3 . . 3 3 . 3 . . 4 5 Max Kills in Single Turn 6 | . 1 2 1 . . 1 2 . 1 . . 2 6 Gunslinging . | . . . . . . . . . . . . . . Exploded 2 | . . 2 . . . 1 2 . . . . . 1 Melee 1 | . . . . . . . . . . . . 1 . Uniques/NPCs Destroyed . | . . . . . . . . . . . . . . Combat | -11 -10 -10 -9 -9 -9 -8 -8 -7 -7 -7 -7 -6 -6 -------- Run | Jun Mat Min Mat Min Exi Min Mat Fac Low Low Dat Pro Fac Damage Taken 7885 | . 521 444 224 18 . 608 889 . 399 81 . 2554 2147 Core 1775 | . 120 108 25 18 . 41 107 . 34 . . 467 855 Absorbed by Shields . | . . . . . . . . . . . . . . Regen/Repaired (Parts) 449 | . . . 190 . . . 259 . . . . . . Core Remaining (%) 59 | 100 . 8 . . . 79 80 . . . . 28 . Volleys Fired 221 | . 43 23 22 . . 32 37 . 14 . . 31 19 Largest 3 | . 2 2 2 . . 2 2 . 2 . . 2 3 Hottest 134 | . 100 100 73 . . 73 134 . 117 . . 96 111 Shots Fired 431 | . 86 41 43 . . 56 64 . 28 . . 62 51 Gun 297 | . 86 36 38 . . 48 25 . 14 . . 18 32 Cannon 104 | . . . . . . . 30 . 14 . . 44 16 Launcher 30 | . . 5 5 . . 8 9 . . . . . 3 Special . | . . . . . . . . . . . . . . Kinetic 268 | . 31 21 22 . . 44 26 . 14 . . 62 48 Thermal 133 | . 55 15 16 . . 4 29 . 14 . . . . Explosive 30 | . . 5 5 . . 8 9 . . . . . 3 Electromagnetic . | . . . . . . . . . . . . . . Robot Hit Streak 17 | . 17 10 7 . . 6 11 . 15 . . 10 10 Robot Miss Streak 4 | . 3 3 1 . . 3 4 . 1 . . 3 4 Penetration Max 1 | . . . . . . 1 . . . . . . 1 Secondary Targets 2 | . . 1 1 . . . . . . . . . . Max Gunslinging Chain 1 | . . 1 1 . . . . . . . . . . Shots Hit Robots 298 | . 61 28 32 . . 36 40 . 24 . . 44 33 Core Hits 145 | . 23 14 15 . . 15 26 . 13 . . 18 21 Critical Kills 3 | . . . . . . 1 . . . . . . 2 Critical Parts Destroyed 3 | . 1 . . . . . . . . . . . 2 Critical Strikes 19 | . 3 . 1 . . 1 3 . 2 . . 4 5 Burn 4 | . 2 . 1 . . . . . 1 . . . . Destroy 6 | . 1 . . . . 1 . . . . . . 4 Blast 9 | . . . . . . . 3 . 1 . . 4 1 Melee Attacks 21 | . . . . . . . . . . 6 . 13 2 Impact . | . . . . . . . . . . . . . . Slashing . | . . . . . . . . . . . . . . Piercing 21 | . . . . . . . . . . 6 . 13 2 Sneak Attacks . | . . . . . . . . . . . . . . Combat Hostiles . | . . . . . . . . . . . . . . Follow-up Attacks . | . . . . . . . . . . . . . . Damage Inflicted 8204 | . 812 792 631 . . 929 1763 . 546 . . 1161 1570 Guns 3359 | . 812 370 440 . . 465 373 . 225 . . 155 519 Cannons 1952 | . . . . . . . 564 . 321 . . 777 290 Explosions 2646 | . . 417 191 . . 464 826 . . . . . 748 Melee 229 | . . . . . . . . . . . . 229 . Ramming 18 | . . 5 . . . . . . . . . . 13 Kinetic 3777 | . 328 242 263 . . 440 442 . 321 . . 932 809 Thermal 1974 | . 484 128 177 . . 25 495 . 225 . . . 440 Explosive 2206 | . . 417 191 . . 464 826 . . . . . 308 Electromagnetic . | . . . . . . . . . . . . . . Impact . | . . . . . . . . . . . . . . Slashing . | . . . . . . . . . . . . . . Piercing 229 | . . . . . . . . . . . . 229 . Highest Corruption 2 | . 1 1 . . . . 1 . . . . 2 . Average Corruption 1 | . 1 1 . . . . 1 . . . . 1 . Corruption Purged . | . . . . . . . . . . . . . . Corruption Blocked . | . . . . . . . . . . . . . . Effects 20 | . . 6 . . . . 2 . . . . 12 . Message Errors 6 | . . 4 . . . . . . . . . 2 . Matter Fused 7 | . . 2 . . . . 1 . . . . 4 . Heat Flow Errors 2 | . . . . . . . . . . . . 2 . Energy Discharges 2 | . . . . . . . 1 . . . . 1 . Data Loss (minor) 2 | . . . . . . . . . . . . 2 . Misfires 1 | . . . . . . . . . . . . 1 . Overload Shots . | . . . . . . . . . . . . . . Overflow Damage 293 | . . 53 1 . . 8 49 . . . . 44 138 Projectiles 77 | . . . . . . . 33 . . . . 44 . Explosions 216 | . . 53 1 . . 8 16 . . . . . 138 Melee . | . . . . . . . . . . . . . . Knockbacks 20 | . . 1 . . . . 2 . 4 . . 11 2 Impact 1 | . . 1 . . . . . . . . . . . Kinetic 19 | . . . . . . . 2 . 4 . . 11 2 Secondary . | . . . . . . . . . . . . . . Self-Inflicted Damage 235 | . . 49 30 . . 81 . . . . . . 75 Shots 7 | . . 1 1 . . 3 . . . . . . 2 Rammed 3 | . . . . . . . . . . . . . 3 Targets Rammed 4 | . . 1 . . . . . . . . . . 3 Kicked 1 | . . 1 . . . . . . . . . . . Crushed . | . . . . . . . . . . . . . . Highest Temperature 549 | . 220 202 104 . . 81 549 . 186 . . 222 227 Average Temperature 78 | . 63 91 37 . . 33 133 . 81 . . 66 91 Received Heat Transfer 3315 | . 237 105 108 . . 297 396 . 216 12 . 897 1047 Effects 8 | . . . . . . . 8 . . . . . . Shutdowns 2 | . . . . . . . 2 . . . . . . Energy Bleed 1 | . . . . . . . 1 . . . . . . Interference 3 | . . . . . . . 3 . . . . . . Damage (minor) 2 | . . . . . . . 2 . . . . . . Siege Activations . | . . . . . . . . . . . . . . Robots Corrupted . | . . . . . . . . . . . . . . Combat Hostiles . | . . . . . . . . . . . . . . Parts Fried . | . . . . . . . . . . . . . . Impact Corruptions . | . . . . . . . . . . . . . . Robots Melted . | . . . . . . . . . . . . . . Combat Hostiles . | . . . . . . . . . . . . . . Parts Melted 7 | . 3 . 4 . . . . . . . . . . Heat Transferred 4185 | . 1517 370 592 . . 74 814 . 518 . . . 300 Parts Sabotaged . | . . . . . . . . . . . . . . Parts Stolen . | . . . . . . . . . . . . . . Parts Stripped . | . . . . . . . . . . . . . . Power Chain Reactions . | . . . . . . . . . . . . . . Missiles Intercepted . | . . . . . . . . . . . . . . Alert | -11 -10 -10 -9 -9 -9 -8 -8 -7 -7 -7 -7 -6 -6 ------- Run | Jun Mat Min Mat Min Exi Min Mat Fac Low Low Dat Pro Fac Peak Influence 532 | . 258 230 306 51 . 121 197 33 . . . . 532 Initial 450 | . . 25 1 51 . . . 21 . . . . 450 Average 119 | . 116 98 169 42 . 34 89 25 . . . . 297 Maximum Alert Level 2 | . 1 1 1 . . . . . . . . . 2 Low Security (%) 85 | . 83 93 59 100 . 100 100 100 . . . . 50 Level 1 9 | . 16 6 40 . . . . . . . . . 14 Level 2 5 | . . . . . . . . . . . . . 34 Level 3 . | . . . . . . . . . . . . . . Level 4 . | . . . . . . . . . . . . . . Level 5 . | . . . . . . . . . . . . . . High Security . | . . . . . . . . . . . . . . Max Security . | . . . . . . . . . . . . . . Squads Dispatched 15 | . 3 . 4 . . . 2 . . . . . 6 Investigation 7 | . 1 . 1 . . . 1 . . . . . 4 Extermination 1 | . . . . . . . . . . . . . 1 Reinforcement 7 | . 2 . 3 . . . 1 . . . . . 1 Assault . | . . . . . . . . . . . . . . Garrison . | . . . . . . . . . . . . . . Intercept . | . . . . . . . . . . . . . . Searches Triggered 1 | . . . . . . . . . . . . . 1 Data Miner Redirects 2 | . . . . . . . . . . . . . 2 Construction Impeded . | . . . . . . . . . . . . . . Haulers Reinforced 1 | . . . . . . . . . . . . . 1 Active Scanning Responses . | . . . . . . . . . . . . . . Cargo Convoy Interrupts . | . . . . . . . . . . . . . . Stealth | -11 -10 -10 -9 -9 -9 -8 -8 -7 -7 -7 -7 -6 -6 --------- Run | Jun Mat Min Mat Min Exi Min Mat Fac Low Low Dat Pro Fac Distress Signals 5 | . 3 . 1 . . . 1 . . . . . . Communications Jammed 52 | . . . . . . . . . . . . . 52 Distress Signals 52 | . . . . . . . . . . . . . 52 Times Spotted 114 | . 21 11 13 1 . 6 15 . 7 2 . 20 18 Peak Tracking Total 8 | . 4 3 3 2 . 3 5 . 3 1 . 8 6 Tactical Retreats 5 | . . . . . . . . . . 2 . . 3 Traps | -11 -10 -10 -9 -9 -9 -8 -8 -7 -7 -7 -7 -6 -6 ------- Run | Jun Mat Min Mat Min Exi Min Mat Fac Low Low Dat Pro Fac Traps Triggered 4 | . 1 . 1 . . . 1 1 . . . . . Indirectly . | . . . . . . . . . . . . . . Trap Hack Attempts . | . . . . . . . . . . . . . . Triggered . | . . . . . . . . . . . . . . Disarmed . | . . . . . . . . . . . . . . Reprogrammed 6 | . 6 . . . . . . . . . . . . Reused 1 | . 1 . . . . . . . . . . . . Traps Extracted . | . . . . . . . . . . . . . . Installed . | . . . . . . . . . . . . . . Triggered 1 | . 1 . . . . . . . . . . . . Most Traps Carried 5 | . . . . 5 5 2 2 . . . . . . Exploded 2 | . . . . . . 2 . . . . . . . Machines | -11 -10 -10 -9 -9 -9 -8 -8 -7 -7 -7 -7 -6 -6 ---------- Run | Jun Mat Min Mat Min Exi Min Mat Fac Low Low Dat Pro Fac Machines Disabled 11 | . . 2 . . . . 1 . . 1 . 2 5 Max in Single Turn 5 | . . 1 . . . . 1 . . 1 . 1 5 Machines Repaired . | . . . . . . . . . . . . . . Machines Sabotaged . | . . . . . . . . . . . . . . Overloaded Fab Kills . | . . . . . . . . . . . . . . Hacking | -11 -10 -10 -9 -9 -9 -8 -8 -7 -7 -7 -7 -6 -6 --------- Run | Jun Mat Min Mat Min Exi Min Mat Fac Low Low Dat Pro Fac Machines Accessed 36 | . 6 . 3 . 2 . 8 4 1 1 4 1 6 Terminals 20 | . 5 . 1 . . . 5 2 . 1 . 1 5 Fabricators . | . . . . . . . . . . . . . . Repair Stations 4 | . . . 1 . . . 2 . . . . . 1 Recycling Units 3 | . 1 . 1 . . . . 1 . . . . . Scanalyzers 2 | . . . . . . . 1 1 . . . . . Garrison Access . | . . . . . . . . . . . . . . Total Hacks 144 | . 19 . 19 . 7 . 32 22 1 1 28 2 13 Successful 105 | . 15 . 12 . 7 . 19 16 1 1 28 2 4 Failed 39 | . 4 . 7 . . . 13 6 . . . . 9 Catastrophic 6 | . . . . . . . 3 . . . . . 3 Database Lockouts . | . . . . . . . . . . . . . . Manual 44 | . 11 . 6 . 1 . 17 4 . . . . 5 Terminals 50 | . 15 . 1 . . . 18 4 . 1 . 2 9 Fabricators . | . . . . . . . . . . . . . . Repair Stations 21 | . . . 10 . . . 7 . . . . . 4 Recycling Units 14 | . 4 . 8 . . . . 2 . . . . . Scanalyzers 23 | . . . . . . . 7 16 . . . . . Garrison Access . | . . . . . . . . . . . . . . Terminal Hacks 53 | . 7 . . . 7 . 3 1 1 1 28 2 3 Record 20 | . . . . . 6 . . . . 1 11 2 . Part Schematic 10 | . . . . . . . . . . . 10 . . Robot Schematic 4 | . . . . . . . . . . . 4 . . Robot Analysis 2 | . 1 . . . . . 1 . . . . . . Prototype ID Bank 5 | . 1 . . . . . 1 . . . 3 . . Open Door 1 | . . . . . . . . . 1 . . . . Open DSF 2 | . . . . . . . . 1 . . . . 1 Emergency Access Points 1 | . 1 . . . . . . . . . . . . Terminal Index 1 | . . . . . . . . . . . . . 1 Alert Level 1 | . . . . . . . . . . . . . 1 Locate Traps 1 | . 1 . . . . . . . . . . . . Reprogram Traps 1 | . 1 . . . . . . . . . . . . Recall Reinforcements 1 | . . . . . . . 1 . . . . . . Hauler Manifests 1 | . 1 . . . . . . . . . . . . Zone Layout 1 | . 1 . . . . . . . . . . . . EX-Prototype ID Bank 1 | . . . . . 1 . . . . . . . . Fabricator Hacks . | . . . . . . . . . . . . . . Repair Station Hacks 16 | . . . 8 . . . 7 . . . . . 1 Scan Component 9 | . . . 4 . . . 4 . . . . . 1 Repair 7 | . . . 4 . . . 3 . . . . . . Recycling Unit Hacks 3 | . 1 . 2 . . . . . . . . . . Report Inventory 2 | . 1 . 1 . . . . . . . . . . Retrieve Components 1 | . . . 1 . . . . . . . . . . Scanalyzer 20 | . . . . . . . 6 14 . . . . . Insert Component 9 | . . . . . . . 3 6 . . . . . Analyze 11 | . . . . . . . 3 8 . . . . . Garrison Access Hacks . | . . . . . . . . . . . . . . Unauthorized Hacks 13 | . 7 . 2 . . . 3 1 . . . . . Terminals 8 | . 4 . . . . . 3 1 . . . . . Botnet 8 | . 4 . . . . . 3 1 . . . . . Fabricators . | . . . . . . . . . . . . . . Repair Stations . | . . . . . . . . . . . . . . Recycling Units 5 | . 3 . 2 . . . . . . . . . . Reject 2 | . 1 . 1 . . . . . . . . . . Mask 2 | . 1 . 1 . . . . . . . . . . Tunnel 1 | . 1 . . . . . . . . . . . . Scanalyzers . | . . . . . . . . . . . . . . Garrison Access . | . . . . . . . . . . . . . . Data Cores Recovered . | . . . . . . . . . . . . . . Used . | . . . . . . . . . . . . . . Hacking Detections 24 | . 5 . 3 . . . 7 3 . . . . 6 Full Trace Events 7 | . . . 1 . . . 2 . . . . . 4 Feedback Events 1 | . . . . . . . . . . . . . 1 Hackware Fried 1 | . . . . . . . . . . . . . 1 Feedback Blocked . | . . . . . . . . . . . . . . Robot Schematics Acquired 4 | . . . . . . . . . . . 4 . . Robots Built . | . . . . . . . . . . . . . . Authchips . | . . . . . . . . . . . . . . Time . | . . . . . . . . . . . . . . Total Robot Build Rating . | . . . . . . . . . . . . . . Part Schematics Acquired 19 | . . . . . . . 3 6 . . 10 . . Parts Built . | . . . . . . . . . . . . . . Authchips . | . . . . . . . . . . . . . . Time . | . . . . . . . . . . . . . . Total Part Build Rating . | . . . . . . . . . . . . . . Parts Repaired 7 | . . . 4 . . . 3 . . . . . . Time 224 | . . . 122 . . . 102 . . . . . . Parts Recycled . | . . . . . . . . . . . . . . Recycled Matter . | . . . . . . . . . . . . . . Retrieved Matter . | . . . . . . . . . . . . . . Retrieved Components 10 | . . . 10 . . . . . . . . . . Parts Scanalyzed 9 | . . . . . . . 3 6 . . . . . Part Schematics Acquired 9 | . . . . . . . 3 6 . . . . . Parts Damaged . | . . . . . . . . . . . . . . Bothacking | -11 -10 -10 -9 -9 -9 -8 -8 -7 -7 -7 -7 -6 -6 ------------ Run | Jun Mat Min Mat Min Exi Min Mat Fac Low Low Dat Pro Fac Used RIF Installer . | . . . . . . . . . . . . . . Robots Hacked . | . . . . . . . . . . . . . . Non-combat . | . . . . . . . . . . . . . . Combat . | . . . . . . . . . . . . . . Robot Hacks Applied . | . . . . . . . . . . . . . . Relay Couplers Released . | . . . . . . . . . . . . . . Fabnet Peak Effective % . | . . . . . . . . . . . . . . Robots Rewired . | . . . . . . . . . . . . . . Allies Hacked . | . . . . . . . . . . . . . . Hacks Repelled . | . . . . . . . . . . . . . . Allies | -11 -10 -10 -9 -9 -9 -8 -8 -7 -7 -7 -7 -6 -6 -------- Run | Jun Mat Min Mat Min Exi Min Mat Fac Low Low Dat Pro Fac Total Allies 4 | . . 2 . 1 . . . . . . . 1 . Largest Group 2 | . . 2 2 1 . . . . . . . 1 . Highest-Rated Group 96 | . . 45 45 31 . . . . . . . 96 . Highest-Rated Ally 96 | . . 31 31 31 . . . . . . . 96 . Total Orders . | . . . . . . . . . . . . . . Ally Attacks 72 | . . . 53 2 . . . . . . . 17 . Total Damage 1216 | . . . 615 42 . . . . . . . 559 . Kills 11 | . . . 6 . . . . . . . . 5 . Allies Corrupted . | . . . . . . . . . . . . . . Allies Melted . | . . . . . . . . . . . . . . Intel | -11 -10 -10 -9 -9 -9 -8 -8 -7 -7 -7 -7 -6 -6 ------- Run | Jun Mat Min Mat Min Exi Min Mat Fac Low Low Dat Pro Fac Robot Analysis Total 2 | . 1 . . . . . 1 . . . . . . Derelict Logs Recovered 4 | . . 1 . . . . . . . 1 . 2 . Drone Launches . | . . . . . . . . . . . . . . Drone Recoveries . | . . . . . . . . . . . . . . Exploration | -11 -10 -10 -9 -9 -9 -8 -8 -7 -7 -7 -7 -6 -6 ------------- Run | Jun Mat Min Mat Min Exi Min Mat Fac Low Low Dat Pro Fac Turns Passed 10361 | . 1165 1144 521 476 586 861 1065 414 859 1007 170 1080 1013 Spaces Moved 4850 | 1 588 557 180 201 322 414 508 217 415 527 91 452 377 Core 4 | . . . . . . . . . . . . 2 2 Treads . | . . . . . . . . . . . . . . Legs 3954 | 1 588 557 180 70 174 414 508 217 415 527 91 212 . Wheels 892 | . . . . 131 148 . . . . . . 238 375 Hover . | . . . . . . . . . . . . . . Flight . | . . . . . . . . . . . . . . Fastest Speed 108 | 120 120 190 120 175 170 182 108 182 188 188 188 185 205 Average Speed 186 | 120 160 190 186 228 178 182 155 184 188 188 188 205 225 Slowest Speed 2200 | 120 190 190 330 330 182 182 182 188 188 188 188 2000 2200 Overloaded Moves . | . . . . . . . . . . . . . . Propulsion Burnouts . | . . . . . . . . . . . . . . Robots Hopped . | . . . . . . . . . . . . . . Cave-ins Triggered . | . . . . . . . . . . . . . . Exploration Rate (%) 47 | 2 82 95 17 30 69 70 44 6 56 56 71 65 8 Regions Visited 13 Branch Regions 8 Pre-discovered Areas 4 | . 1 1 . . 1 . . . . . 1 . . Known Exits Taken 12 | . 1 1 1 1 1 1 1 1 1 1 1 1 . Unknown Exits Taken 1 | 1 . . . . . . . . . . . . . Scrap Searched 11 | . . 2 . 1 . 1 . . 1 2 . 4 . Spaces Dug 5 | . . . . . . . . . . 4 . . 1 Terrain Destroyed 234 | . . 37 20 . . 62 50 . . 4 . 8 53 Melee 5 | . . . . . . . . . . 4 . . 1 Projectile 15 | . . . . . . 2 5 . . . . 8 . AOE 214 | . . 37 20 . . 60 45 . . . . . 52 Terrain Rammed . | . . . . . . . . . . . . . . Walls Destroyed . | . . . . . . . . . . . . . . Machines Disabled . | . . . . . . . . . . . . . . Actions | -11 -10 -10 -9 -9 -9 -8 -8 -7 -7 -7 -7 -6 -6 --------- Run | Jun Mat Min Mat Min Exi Min Mat Fac Low Low Dat Pro Fac Total 5733 | . 727 603 330 216 335 474 721 231 468 537 90 530 471 Wait 394 | . 75 8 103 1 . 7 127 . 22 1 . 6 44 Move 4837 | . 587 556 179 200 321 413 507 216 414 526 90 451 377 Hop . | . . . . . . . . . . . . . . Pick Up 96 | . 12 4 7 11 5 8 18 4 5 1 . 9 12 Fast Attach 11 | . 2 . 1 . 1 1 3 . 1 . . 1 1 Attach 33 | . 2 1 4 . 1 1 5 3 1 . . 10 5 Detach . | . . . . . . . . . . . . . . Swap 47 | . 2 7 7 3 1 3 10 1 4 2 . 4 3 Drop 64 | . 4 3 7 1 6 9 14 2 7 1 . 5 5 Fire 221 | . 43 23 22 . . 32 37 . 14 . . 31 19 Melee 21 | . . . . . . . . . . 6 . 13 2 Ram 3 | . . . . . . . . . . . . . 3 Kick 1 | . . 1 . . . . . . . . . . . Crush . | . . . . . . . . . . . . . . Escape Stasis 5 | . . . . . . . . 5 . . . . . Rewire . | . . . . . . . . . . . . . . Trap . | . . . . . . . . . . . . . . Miscellaneous . | . . . . . . . . . . . . . . Route ------- -11/Junkyard -10/Materials (discovered 4 exits: *Mat x3 / *Min) -10/Mines (discovered 2 exits: *Mat x2) -9/Materials -9/Mines -9/Exiles -8/Mines -8/Materials -7/Factory (discovered 2 exits: *Low / DSF) -7/Lower Caves -7/Lower Caves -7/Data Miner -6/Proximity Caves -6/Factory (discovered 2 exits: Fac / Low) History --------- Turn | Location | Event 1 | -11/Junkyard | Discovered new exit (range 0) 1 | -11/Junkyard | Entered Materials 91 | -10/Materials | Discovered new exit (range 16) 262 | -10/Materials | Discovered new exit (range 18) 317 | -10/Materials | Build established: Mutant 754 | -10/Materials | Discovered new exit (range 4) 1020 | -10/Materials | Discovered new exit (range 5) 1027 | -10/Materials | Identified exit to Mines 1166 | -10/Materials | Entered Mines 1168 | -10/Mines | Core integrity fell below 50% 1269 | -10/Mines | Received a Rocket Launcher from a helpful Derelict 1608 | -10/Mines | Core integrity fell below 20% 1831 | -10/Mines | Learned Materials garrison access intel 2064 | -10/Mines | Discovered new exit (range 13) 2235 | -10/Mines | Discovered new exit (range 5) 2236 | -10/Mines | Learned location of Storage (-8) 2249 | -10/Mines | Identified exit to Materials 2310 | -10/Mines | Entered Materials 2310 | -9/Materials | Accompanied by 2 allies 2310 | -9/Materials | Evolved 2 slots: Propulsion x1, Utility x1 2315 | -9/Materials | Led the pair of lost Derelicts to an unsafe place 2469 | -9/Materials | Discovered new exit (range 15) 2521 | -9/Materials | Repaired Rocket Launcher 2554 | -9/Materials | Repaired Autogun 2604 | -9/Materials | Repaired Autogun 2615 | -9/Materials | Build established: Scavenger-Mutant 2631 | -9/Materials | Repaired Med. Laser 2824 | -9/Materials | Identified exit to Mines 2831 | -9/Materials | Entered Mines 2834 | -9/Mines | Received a Mining Laser from a helpful Derelict 2842 | -9/Mines | Met a Derelict bent on vengeance 3025 | -9/Mines | Joined a pair of Derelicts in attacking an 0b10 outpost 3258 | -9/Mines | Found a hidden stash of uninstalled traps 3295 | -9/Mines | Deemed a non-threat by the Exiles lab entrance 3296 | -9/Mines | Discovered new exit (range 5) 3303 | -9/Mines | Identified exit to Exiles 3307 | -9/Mines | Entered Exiles 3372 | -9/Exiles | Build established: Mutant 3378 | -9/Exiles | Met 8R-AWN 3412 | -9/Exiles | Met EX-HEX 3468 | -9/Exiles | Met EX-BIN 3499 | -9/Exiles | Aligned with FarCom system 3501 | -9/Exiles | Given EX-Vault access code 3557 | -9/Exiles | Opened EX-Vault 3571 | -9/Exiles | Found Potential Leg 3573 | -9/Exiles | Found Potential Leg 3618 | -9/Exiles | Warned to stay clear of 0b10 Research branches 3682 | -9/Exiles | Met EX-DEC 3702 | -9/Exiles | Learned location of Zion (-6) 3869 | -9/Exiles | Discovered new exit (range 14) 3891 | -9/Exiles | Identified exit to Mines 3893 | -9/Exiles | Left Exiles lab with Potential Leg 3893 | -9/Exiles | Entered Mines 4722 | -8/Mines | Discovered new exit (range 3) 4729 | -8/Mines | Identified exit to Materials 4754 | -8/Mines | Entered Materials 4754 | -8/Materials | Evolved 2 slots: Propulsion x2 4755 | -8/Materials | Loaded intel: 1 garrison access location 5062 | -8/Materials | Build established: Scavenger-Mutant 5130 | -8/Materials | Repaired Rocket Launcher 5163 | -8/Materials | Repaired Rnf. Ion Engine 5490 | -8/Materials | Repaired Carbon-fiber Leg 5801 | -8/Materials | Discovered new exit (range 3) 5816 | -8/Materials | Identified exit to Factory 5819 | -8/Materials | Entered Factory 5819 | -7/Factory | Evolved 2 slots: Utility x2 5973 | -7/Factory | Identified exit to DSF 6153 | -7/Factory | Discovered new exit (range 7) 6217 | -7/Factory | Identified exit to Lower Caves 6233 | -7/Factory | Entered Lower Caves 6512 | -7/Lower Caves | Attracted the attention of an 0b10 checkpoint 6877 | -7/Lower Caves | Discovered new exit (range 9) 6894 | -7/Lower Caves | Identified exit to Lower Caves 6929 | -7/Lower Caves | Encountered a Warlord checkpoint 7092 | -7/Lower Caves | Entered another Lower Caves area 7176 | -7/Lower Caves | Spotted B-75 Beast 7323 | -7/Lower Caves | Build established: Mutant 7381 | -7/Lower Caves | Learned location of 1 exit from Factory 7877 | -7/Lower Caves | Discovered new exit (range 7) 7886 | -7/Lower Caves | Identified exit to Data Miner 8099 | -7/Lower Caves | Entered Data Miner 8099 | -7/Data Miner | Discovered new exit (range 6) 8135 | -7/Data Miner | Met Data Miner 8180 | -7/Data Miner | Learned location of Section 7 (-2) 8180 | -7/Data Miner | Acquired the access code to Warlord's prototype stash 8218 | -7/Data Miner | Received God Mode back door access code from Data Miner 8267 | -7/Data Miner | Identified exit to Proximity Caves 8269 | -7/Data Miner | Entered Proximity Caves 8271 | -6/Proximity Caves | Spotter reported a threat 8272 | -6/Proximity Caves | Spotter reported a threat 8408 | -6/Proximity Caves | Escorted by Enhanced Grunt 8408 | -6/Proximity Caves | Attracted the attention of an 0b10 base 8410 | -6/Proximity Caves | Spotter reported a threat 8481 | -6/Proximity Caves | Learned Factory emergency access door positions 8481 | -6/Proximity Caves | Learned Extension security intel 8674 | -6/Proximity Caves | Spotted B-75 Beast 8754 | -6/Proximity Caves | Core integrity fell below 50% 8816 | -6/Proximity Caves | Lost 11 parts (1p5n3u2w) 9298 | -6/Proximity Caves | Learned Factory non-interactive machine intel 9321 | -6/Proximity Caves | Discovered new exit (range 7) 9345 | -6/Proximity Caves | Identified exit to Factory 9349 | -6/Proximity Caves | Entered Factory 9349 | -6/Factory | Evolved 2 slots: Utility x1, Weapon x1 9350 | -6/Factory | Identified exit to Lower Caves 9351 | -6/Factory | Identified exit to Factory 9353 | -6/Factory | Loaded intel: 235 non-interactive machine locations 9392 | -6/Factory | Hacking Suite fried by hacking feedback 9453 | -6/Factory | Incoming investigation squad redirected 9512 | -6/Factory | Identified exit to DSF 9699 | -6/Factory | Search patrols dispatched 9875 | -6/Factory | Build established: Tank 9901 | -6/Factory | Incoming investigation squad redirected 10340 | -6/Factory | Core integrity fell below 50% 10351 | -6/Factory | Core integrity fell below 20% 10357 | -6/Factory | Lost 8 parts (1p2n2u3w) 10362 | -6/Factory | Destroyed by G-50 Soldier with Heavy Laser Last Messages --------------- 10350_ U-05 Engineer builds a Wall. 10350_ K-01 Serf collects debris. 10350_ U-05 Engineer builds a Wall. 10351_ U-05 Engineer lays Concrete. 10353_ K-01 Serf collects debris. 10354_ U-05 Engineer lays Concrete. 10356_ K-01 Serf collects debris. 10356_ Critical hit (Burn: +37). 10356_ U-05 Engineer lays Concrete. 10356_ K-01 Serf collects debris. 10358_ U-05 Engineer lays Concrete. 10358_ Mak. Transmission Jammer destroyed. 10358_ Critical hit (Burn: +37). 10358_ U-05 Engineer lays Concrete. 10360_ K-01 Serf collects debris. 10360_ K-01 Serf destroyed. 10360_ K-01 Serf collects debris. 10360_ Critical hit (Burn: +37). 10361_ U-05 Engineer builds a Wall. 10361_ U-05 Engineer lays Concrete. Map ----- +----------------------------------------------------+ | ?????????????????????????????"""?????????????????? | | ?????????????????????????????????????????????????? | | ?????????????????????????????"""?????????????????? | | ?????????????????????????????"""?????????"""?"""?" | | ??????????????"""????????????"""?????????"""?"""?" | | ??????????????"""????????????????????????"""?"""?" | | ??????????????"""????????????????????????"""?"""?" | | ??????????????????????? ?????????????????????? | | ??????????????"""?????+ #????????????"""?"""?" | | ??????????????"""?????# #????????????"""?"""?" | | ??????????????"""?????# #? ????????"""?"""?" | | ??????????????????????# t # """????"""?"""?" | | ??????????????????????# # """????????????? | | ?????????????????###??# # """????????????? | | ?????????????????? ??# u# ?????????????? | | ???????????""""""""" ?# + """????????????? | | ????????????????? ? ?# u# """????????????? | | ???????????""""""""" # u g# ?"""????????????? | | ??????????????? ? # ?????????????????? | | ???????????""""""""" ? ??????????????????? | | ??????????????? # g ###??+??????????????? | | ???????????""""""""" # +?????"""""???????? | | ?????????? = ##???????"""""???????? | | ???????????""""""""" g%* #???????"""?????????? | | ?????????? [ #???????????????????? | | ?????????? @ #???????????????????? | | ???????????##############g#######????????????????? | | ???????????????????# %%%% " #????????????????? | | ???""""????????????# =! " #????????????????? | | ???""""????????????# !%| #########????????? | | ???""""???????###### % / ?? | | ???""""???????# # u ########????????? | | ???""""???????# + #??????????????? | | ???""""???????# # #??????????????? | | ???""""???????# # #??????????????? | | ??????????????# # ??????????????? | | ######+######## # k ##????????""""?" | | # # ?????????""""?" | | ^ # # k % #?????????""""?" | | + ###+## ???????????""""?" | | ^ """ ######????##; = ???????????????????? | | """"" #???????? #" ???????????????""""?" | | # """"" ##### ???????????????""""?" | | # T" ???????????????????""""?" | | # " ?????????????????""""?" | | ######## ?????????????????????? | | #??????##+###### ?????????????????????? | | #??????? ??????? ##?????????????????????? | | #??????? ????????#/####??????????????????????? | | #?????""" """??????? ????????????????????????? | +----------------------------------------------------+ Best States ------------- Heat Dissipation 48 Energy Generation 18 Energy Capacity 275 Matter Stores 300 Matter Capacity 300 Sight Range 16 Terrain Scan Range 16 Terrain Scan Density 10 Jamming Range 14 Armor Coverage 450 Resistance: KI 30 Evasion (%) 55 Targeting Accuracy 6 Offensive Hacking 10 Item Schematics ----------------- Rocket Launcher | -8/Materials | Scanalyzed Imp. Targeting Computer | -8/Materials | Scanalyzed Imp. Heat Sink | -8/Materials | Scanalyzed System Restoration Module | -7/Factory | Scanalyzed Med. Reactive Plating | -7/Factory | Scanalyzed Hacking Suite | -7/Factory | Scanalyzed Lrn. Tractor Beam | -7/Factory | Scanalyzed Imp. Terrain Scanner | -7/Factory | Scanalyzed Hrd. Medium Armor Plating | -7/Factory | Scanalyzed Combat Drone Bay | -7/Data Miner | Free Cld. Cesium-ion Thruster | -7/Data Miner | Free Lgt. Regenerative Plating | -7/Data Miner | Free Gravity Neutralizer | -7/Data Miner | Free Prc. Rocket Launcher | -7/Data Miner | Free Antigrav System | -7/Data Miner | Free Imp. Coolant Injector | -7/Data Miner | Free Wave Gun | -7/Data Miner | Free Imp. Cloaking Device | -7/Data Miner | Free Imp. Component Analysis Suite | -7/Data Miner | Free Robot Schematics ------------------ L-41 Fighter | -7/Data Miner | Free R-10 Processor | -7/Data Miner | Free H-66 Slayer | -7/Data Miner | Free S-27 Virus | -7/Data Miner | Free Fabricated ------------ Nothing Alien Tech Used ----------------- None Achievements -------------- None Challenges ------------ None Game ------ Seed GravmagTrapHammer Manual? 0 Play Time 01:37:48 Cumulative 123.5 hours Start 2023.03.13 @ 23:43:23 End 2023.03.14 @ 01:47:33 Sessions 1 Manual Loads 0 Difficulty Rogue Special Mode None Game No. 92 Rogue 92 Adventurer 0 Explorer 0 Win Type - Total 0 Types 0/0/0/0/0/0/0/0/0 Lore% 51 Gallery% 63 Achievement% 41 Wizard Run 0 Options --------- ASCII 0 Keyboard 0 Movement Arrows Keybinds 1 Fullscreen 0 Font 16/Terminus Map View 76x50 Tactical HUD 1 Map Filters NONE Filters NONE Steam 1 RUN: 249273b0-449a-46f1-b55c-73f2a1cac3f4